Cogmind - Beta 11.1 @@@ ROGUE MODE // 2022.06.05 @ 19:45:07 Player: Savant Result: Destroyed by as-10494 with Assembled Gauss Rifle Performance ------------- Evolutions (4) 2000 Regions Visited (17) 3400 Robots Destroyed (188) 940 Value Destroyed (5322) 5322 Prototype IDs (45) 900 Alien Tech Used (0) 0 Bonus (3672) 3672 TOTAL SCORE: 16234 Bonus ------- High Alert Combat Kills 109 Follower Combat Kills 963 Met Data Miner 300 Met Imprinter 300 Destroyed Z-Imprinter 1000 Triggered Deep Caves Wall 500 Exposed GOLEM Chamber 500 Cogmind --------- Core Integrity 0/850 Matter 27/300 Energy 58/100 System Corruption 0% Temperature Warm (100) Movement Walking (120) Location -6/Deep Caves Parts ------- > --- POWER (1) -------- (None) > --- PROPULSION (3) --- Enhanced Flexi-carbon Leg Enhanced Flexi-carbon Leg > --- UTILITY (9) ------ High-capacity Storage Unit Advanced Terrain Scan Processor Improved Melee Analysis Suite > --- WEAPON (2) ------- Chainsword Makeshift Spear > --- INVENTORY (20) --- Zionite Light DM Reactor Zionite Glidesys I Zionite Biocell (600) Experimental Sensor Array Advanced Terrain Scanner Phase Cannon Gauss Rifle Antimatter Cannon Scatter Rocket Array Peak State ------------ > --- POWER ------------ Zionite Light DM Reactor > --- PROPULSION ------- Improved Medium Treads Zionite Composite Leg I Zionite Glidesys I > --- UTILITY ---------- High-capacity Storage Unit Advanced Terrain Scan Processor Improved Melee Analysis Suite Zionite Heavy Carapace Layered Heavy Armor Plating Combat Drone Bay > --- WEAPON ----------- Zionite Laser-M Antimatter Cannon > --- INVENTORY -------- Zionite Light DM Reactor Enhanced Flexi-carbon Leg Enhanced Flexi-carbon Leg Zionite Biocell Experimental Sensor Array Advanced Terrain Scanner Zionite Phaser-S Phase Cannon Gauss Rifle Scatter Rocket Array Makeshift Hammer Chainsword Chainsword Makeshift Spear [Rating: 94] Favorites ----------- Power Improved Deuterium Engine Engine Improved Deuterium Engine Power Core Light Fission Core Reactor Zionite Light DM Reactor Propulsion Medium Treads Treads Medium Treads Leg Enhanced Flexi-carbon Leg Wheel Compact Wheel Hover Unit Zionite Glidesys I Flight Unit Flight Unit Utility High-capacity Storage Unit Device Structural Scanner Storage High-capacity Storage Unit Processor Improved Melee Analysis Suite Hackware Hacking Suite Protection Hardened Heavy Armor Plating Weapon Great Maul Energy Gun Small Laser Energy Cannon Heavy Ion Cannon Ballistic Gun Gauss Rifle Ballistic Cannon Antimatter Cannon Launcher Improved Grenade Launcher Impact Weapon Great Maul Slashing Weapon Chainsword Piercing Weapon Makeshift Spear Special Melee Weapon Improved Datajack Build | -11 -10 -10 -9 -9 -9 -8 -8 -7 -7 -7 -7 -6 -6 -6 -6 -6 -6 ------- Run | Scr Mat Min Mat Min Exi Min Mat Fac Low Low Dat Pro Fac Low Low Zio Dee Slots Evolved 8 | . . . 2 . . . 2 2 . . . . 2 . . . . Power . | . . . . . . . . . . . . . . . . . . Propulsion 1 | . . . 1 . . . . . . . . . . . . . . Utility 7 | . . . 1 . . . 2 2 . . . . 2 . . . . Weapon . | . . . . . . . . . . . . . . . . . . Parts Attached 414 | 6 14 6 44 4 1 30 41 72 14 13 3 23 74 10 13 10 36 Power 11 | 1 . 2 2 . . 1 1 2 . . . . . 1 . . 1 Engine 8 | 1 . 1 2 . . 1 1 2 . . . . . . . . . Core 2 | . . 1 . . . . . . . . . . . 1 . . . Reactor 1 | . . . . . . . . . . . . . . . . . 1 Propulsion 55 | 2 2 2 6 . . 8 9 3 . 1 . 1 11 . 1 3 6 Treads 23 | 1 1 1 3 . . 5 8 2 . . . . 1 . . 1 . Leg 9 | . . . . . . . . . . . . . 4 . . 1 4 Wheel 19 | 1 1 1 2 . . 3 . 1 . 1 . 1 6 . 1 1 . Hover 3 | . . . . . . . 1 . . . . . . . . . 2 Flight 1 | . . . 1 . . . . . . . . . . . . . . Utility 228 | 1 3 1 23 2 1 15 18 61 7 6 1 11 45 9 8 3 13 Device 149 | . 1 . 12 2 . 9 11 55 4 3 . 6 25 6 8 2 5 Storage 7 | 1 1 . 1 . 1 . . . . . . . 2 . . . 1 Processor 7 | . . . . . . . 2 1 . . . . 3 1 . . . Hackware 7 | . . . . . . . 1 1 . . . . 5 . . . . Protection 58 | . 1 1 10 . . 6 4 4 3 3 1 5 10 2 . 1 7 Artifact . | . . . . . . . . . . . . . . . . . . Weapon 120 | 2 9 1 13 2 . 6 13 6 7 6 2 11 18 . 4 4 16 Energy Gun 12 | 1 3 . . . . . 1 . . 1 . . . . . . 6 Energy Cannon 13 | . . . 4 . . 3 2 1 1 . . . 2 . . . . Ballistic Gun 18 | 1 . . 1 . . 1 2 . 3 . . 5 2 . 2 . 1 Ballistic Cannon 1 | . . . . . . . . . . . . . . . . . 1 Launcher 5 | . . . . . . . . . . 1 . 2 . . . 1 1 Special Weapon . | . . . . . . . . . . . . . . . . . . Impact Weapon 49 | . 5 1 8 2 . 2 7 4 3 3 1 3 8 . . 1 1 Slashing Weapon 14 | . 1 . . . . . 1 1 . . . . 6 . 1 2 2 Piercing Weapon 5 | . . . . . . . . . . . . . . . 1 . 4 Special Melee Weapon 3 | . . . . . . . . . . 1 1 1 . . . . . Unidentified Prototypes 15 | . . . 2 . . . 2 . . . . . . . . . 11 Parts Lost 50 | . 2 2 5 . . 7 3 2 . 1 . 2 10 1 1 . 14 Power 4 | . . 1 . . . 1 . . . . . . . 1 . . 1 Propulsion 20 | . 1 1 3 . . 4 . 1 . 1 . 1 5 . . . 3 Utility 18 | . . . 1 . . 1 3 1 . . . 1 4 . 1 . 6 Weapon 8 | . 1 . 1 . . 1 . . . . . . 1 . . . 4 Highest Loss Streak 14 | . 1 2 2 . . 4 2 2 . 1 . 1 4 1 1 . 14 To Critical Strikes . | . . . . . . . . . . . . . . . . . . Average Slot Usage (%) 93 | . 98 100 98 100 100 99 91 91 91 91 92 91 93 97 92 92 85 Engine 6 | . 14 9 10 11 11 11 8 6 7 7 7 7 6 1 . . . Core 1 | . . 4 . . . . . . . . . . . 4 6 6 1 Treads 13 | . 14 19 8 11 11 24 26 21 23 18 15 9 2 . . . 5 Leg 3 | . . . . . . . . . . . . . 3 20 13 12 6 Wheel 6 | . 13 8 21 22 22 8 . 1 . 4 7 12 13 . 5 5 5 Device 13 | . 8 5 12 22 22 11 10 6 14 12 12 14 16 18 19 19 11 Storage 7 | . 14 14 11 11 11 11 9 7 7 7 7 7 6 6 6 6 6 Processor 9 | . . . . . . . 6 13 7 7 7 5 2 20 20 20 19 Hackware 4 | . . . . . . . 2 8 7 7 7 7 17 8 . . . Protection 7 | . 3 8 9 . . 10 10 7 7 9 9 9 10 2 6 5 7 Energy Cannon 1 | . . . 4 7 . 7 1 1 3 . . . . 6 . . . Ballistic Gun 1 | . 3 . 1 . . 3 1 1 1 . . 5 . . . . . Impact Weapon 9 | . 17 28 16 14 22 10 14 11 10 14 9 9 9 . . . . Slashing Weapon 2 | . 1 . . . . . 1 1 . . . . 2 6 5 5 5 Piercing Weapon 1 | . . . . . . . . . . . . . . . 5 6 5 Naked Turns . | . . . . . . . . . . . . . . . . . . Heaviest Build 107 | 13 30 34 63 57 56 63 82 88 84 82 82 85 107 87 80 89 97 Greatest Support 84 | 16 20 40 32 26 26 69 84 84 84 84 10 26 76 76 76 76 52 Greatest Overweight (x) 8 | . 1 2 3 2 2 6 1 7 . 8 8 8 6 1 6 7 8 Average Overweight (x) 2 | . . 1 1 2 2 . . 1 . 4 7 4 2 . 2 5 6 Largest Inventory Capacity 20 | 8 15 15 20 20 20 20 20 20 20 20 20 20 20 20 20 20 20 Average Capacity 19 | 7 12 15 19 20 20 20 20 20 20 20 20 20 20 20 20 20 20 Most Carried 20 | 4 12 12 20 20 20 20 20 20 20 20 20 20 20 20 20 20 20 Average Carried 18 | 2 7 11 15 19 20 17 19 19 19 19 20 19 18 19 19 19 19 Final Capacity 20 | 8 15 15 20 20 20 20 20 20 20 20 20 20 20 20 20 20 20 Final Carried 20 | 4 12 12 17 20 20 17 20 20 20 20 20 20 17 20 20 20 9 Class Distribution -------------------- 36% | Mutant 30% | Assassin 11% | Scavenger-Assassin 8% | Hacker-Mutant 7% | Commander-Mutant 3% | Hacker-Assassin Dominant Class ---------------- Mutant | -10/Materials Mutant | -10/Mines Mutant | -9/Materials Mutant | -9/Mines Mutant | -9/Exiles Mutant | -8/Mines Mutant | -8/Materials Assassin | -7/Factory Assassin | -7/Lower Caves Assassin | -7/Lower Caves Assassin | -7/Data Miner Assassin | -6/Proximity Caves Hacker-Mutant | -6/Factory Scavenger-Assassin | -6/Lower Caves Assassin | -6/Lower Caves Scavenger-Assassin | -6/Zion Commander-Mutant | -6/Deep Caves Resources | -11 -10 -10 -9 -9 -9 -8 -8 -7 -7 -7 -7 -6 -6 -6 -6 -6 -6 ----------- Run | Scr Mat Min Mat Min Exi Min Mat Fac Low Low Dat Pro Fac Low Low Zio Dee Matter Collected 4976 | 240 232 59 375 80 . 339 428 822 208 319 . 525 668 183 207 20 271 Remotely . | . . . . . . . . . . . . . . . . . . Salvage Created 6758 | . 474 335 783 15 . 585 1379 780 62 287 . 175 1352 20 199 . 312 Parts 212 | . 14 9 20 4 . 27 41 11 3 15 . 7 30 3 16 . 12 Haulers Intercepted 15 | . 1 . 5 . . . 6 . . . . . 3 . . . . Recyclers Shooed 6 | . . . 1 . . . . 2 . . . . 3 . . . . Parts Field Recycled . | . . . . . . . . . . . . . . . . . . Retrieved Matter . | . . . . . . . . . . . . . . . . . . Parts Self-Destructed 60 | . . . . . . . . . 3 11 . 12 . 7 27 . . Prevented 6 | . . . . . . . . . . 5 . 1 . . . . . Kills | -11 -10 -10 -9 -9 -9 -8 -8 -7 -7 -7 -7 -6 -6 -6 -6 -6 -6 ------- Run | Scr Mat Min Mat Min Exi Min Mat Fac Low Low Dat Pro Fac Low Low Zio Dee Combat Hostiles Destroyed 170 | . 11 9 14 . . 16 28 13 1 11 . 8 15 1 5 . 38 Melee 67 | . 6 4 5 . . 4 18 3 . 5 . 6 10 1 2 . 3 Guns 10 | . 2 . . . . 3 . . 1 . . . 1 . 3 . . Cannons 9 | . . . 2 . . 6 . 1 . . . . . . . . . AOE 41 | . . . . . . . . . . 4 . 2 . . . . 35 Classes Destroyed 21 | . 9 1 1 . . 3 . 1 . . . . 1 . 2 . 3 Worker 10 | . 1 1 1 . . 2 1 2 . . . . 2 . . . . Builder 4 | . 1 . 1 . . . 1 1 . . . . . . . . . Tunneler 4 | . 1 . . 1 . 1 . 1 . . . . . . . . . Hauler 15 | . 1 . 5 . . . 6 . . . . . 3 . . . . Recycler 10 | . 1 2 1 . . . 1 3 . . . . 2 . . . . Minesweeper 1 | . . . . . . . . . . . . . . . 1 . . Operator 1 | . 1 . . . . . . . . . . . . . . . . Watcher 8 | . 1 . 1 . . . 4 1 . . . . 1 . . . . Swarmer 53 | . 6 5 5 . . 6 10 3 . 7 . 7 . 1 3 . . Grunt 47 | . 5 2 6 . . 6 12 4 . 3 . 1 7 . 1 . . Brawler 1 | . . . . . . 1 . . . . . . . . . . . Duelist 3 | . . . . . . 2 . . . . . . 1 . . . . Sentry 12 | . . . 3 . . . 5 2 1 . . . 1 . . . . Demolisher 2 | . . 2 . . . . . . . . . . . . . . . Specialist 2 | . . . . . . . . . . . . . 2 . . . . Hunter 5 | . . . . . . 1 1 . . . . . 3 . . . . Programmer 6 | . . . . . . . . 4 . 1 . . 1 . . . . Z-Light 2 | . . . . . . . . . . . . . . . . . 2 Assembler 1 | . . . . . . . . . . . . . . . . . 1 Assembled 36 | . . . . . . . . . . . . . . . . . 36 Mutant 1 | . . . . . . . . . . . . . . . 1 . . Best Kill Streak 36 | . 3 7 5 1 . 5 5 3 1 4 . 4 3 1 3 . 36 Combat Bots Only 35 | . 3 5 5 . . 3 5 3 1 4 . 4 3 1 3 . 35 Max Kills in Single Turn 28 | . 1 1 1 1 . 1 1 1 1 2 . 1 1 1 1 . 28 Gunslinging . | . . . . . . . . . . . . . . . . . . Exploded 27 | . . . . . . . . . . 2 . 1 . . . . 27 Melee 1 | . 1 1 1 . . 1 1 1 . 1 . 1 1 1 1 . 1 Uniques/NPCs Destroyed 1 | . . . . . . . . . . . . . . . . . 1 Z-Imprinter (-6/Deep Caves) Combat | -11 -10 -10 -9 -9 -9 -8 -8 -7 -7 -7 -7 -6 -6 -6 -6 -6 -6 -------- Run | Scr Mat Min Mat Min Exi Min Mat Fac Low Low Dat Pro Fac Low Low Zio Dee Damage Taken 12947 | . 419 579 860 . . 1385 1415 1353 54 786 . 682 2217 50 438 . 2709 Core 1828 | . 75 128 133 . . 187 137 120 . 62 . 130 239 33 85 . 499 Absorbed by Shields 112 | . . . . . . . 112 . . . . . . . . . . Redirected to Shielding 113 | . . . . . . . . . . . . . 113 . . . . Regen/Repaired (Parts) 1270 | . . . 266 . . . 479 89 . . . . 436 . . . . Core Remaining (%) 53 | 100 . 18 . . . 20 75 . . . . 55 . . . . . Volleys Fired 113 | . 11 . 8 . . 40 7 1 9 3 . 15 3 . 8 . 8 Largest 2 | . 2 . 2 . . 2 2 1 2 1 . 2 2 . 2 . 2 Hottest 136 | . 80 . 136 . . 136 96 65 65 36 . 56 85 . 56 . 133 Shots Fired 203 | . 22 . 16 . . 79 8 2 18 3 . 21 5 . 16 . 13 Gun 104 | . 22 . . . . 21 6 . 17 . . 12 4 . 16 . 6 Cannon 84 | . . . 16 . . 58 2 2 1 . . . 1 . . . 4 Launcher 15 | . . . . . . . . . . 3 . 9 . . . . 3 Special . | . . . . . . . . . . . . . . . . . . Kinetic 89 | . 9 . . . . 21 6 . 17 . . 12 4 . 16 . 4 Thermal 98 | . 13 . 16 . . 58 2 2 1 . . . 1 . . . 5 Explosive 15 | . . . . . . . . . . 3 . 9 . . . . 3 Electromagnetic . | . . . . . . . . . . . . . . . . . . Phasic 1 | . . . . . . . . . . . . . . . . . 1 Robot Hit Streak 27 | . 6 . 10 . . 27 10 . 4 3 . 9 3 . 6 . 5 Robot Miss Streak 8 | . 1 . 1 . . 2 2 2 2 . . 2 3 . 6 . 8 Penetration Max . | . . . . . . . . . . . . . . . . . . Secondary Targets . | . . . . . . . . . . . . . . . . . . Shots Hit Robots 489 | . 51 20 67 1 . 67 90 56 7 16 1 18 59 1 18 . 17 Core Hits 212 | . 13 4 10 1 . 23 17 5 2 8 . 10 11 1 15 . 92 Critical Kills 15 | . . 1 2 1 . 1 4 . . . . 1 5 . . . . Critical Parts Destroyed 70 | . 6 5 10 . . 2 19 11 1 4 . 2 10 . . . . Critical Strikes 88 | . 6 7 12 1 . 3 24 12 1 4 . 3 15 . . . . Meltdown 1 | . . . . . . 1 . . . . . . . . . . . Destroy 2 | . . . . . . . . . 1 . . . 1 . . . . Smash 85 | . 6 7 12 1 . 2 24 12 . 4 . 3 14 . . . . Melee Attacks 711 | . 50 37 97 2 . 22 136 140 11 34 1 20 103 12 20 16 10 Impact 607 | . 45 37 97 2 . 22 125 121 11 34 . 19 84 . . 9 1 Slashing 88 | . 5 . . . . . 11 19 . . . . 19 12 14 1 7 Piercing 14 | . . . . . . . . . . . . . . . 6 6 2 Sneak Attacks 58 | . 6 6 7 1 . . 15 7 . . 1 2 12 . 1 . . Combat Hostiles 3 | . . 2 . . . . . . . . . 1 . . . . . Follow-up Attacks 57 | . 2 3 9 . . 3 11 8 . 3 . 3 11 . 2 . 2 Damage Inflicted 22183 | . 1502 887 2395 60 . 1671 4427 2656 58 1174 . 950 2989 38 413 . 2963 Guns 1036 | . 216 . . . . 296 58 . 58 . . 76 47 . 162 . 123 Cannons 1256 | . . . 258 . . 858 21 . . . . . . . . . 119 Explosions 3450 | . . . . . . . . . . 433 . 567 . . . . 2450 Melee 16441 | . 1286 887 2137 60 . 517 4348 2656 . 741 . 307 2942 38 251 . 271 Ramming . | . . . . . . . . . . . . . . . . . . Kinetic 933 | . 117 . . . . 296 58 . 58 . . 76 47 . 162 . 119 Thermal 1326 | . 99 . 258 . . 858 21 . . . . . . . . . 90 Explosive 3450 | . . . . . . . . . . 433 . 567 . . . . 2450 Electromagnetic . | . . . . . . . . . . . . . . . . . . Impact 14860 | . 1163 887 2137 60 . 517 4059 2468 . 741 . 307 2479 . . . 42 Slashing 1487 | . 123 . . . . . 289 188 . . . . 463 38 186 . 200 Piercing 94 | . . . . . . . . . . . . . . . 65 . 29 Phasic 33 | . . . . . . . . . . . . . . . . . 33 Highest Corruption 7 | . 3 3 . . . . . 6 6 7 7 7 . . . . . Average Corruption 5 | . 2 3 . . . . . 4 6 6 7 7 . . . . . Corruption Purged . | . . . . . . . . . . . . . . . . . . Corruption Blocked . | . . . . . . . . . . . . . . . . . . Effects 228 | . 14 4 . . . . . 64 45 51 5 45 . . . . . Message Errors 67 | . 2 1 . . . . . 22 17 10 3 12 . . . . . Matter Fused 62 | . 7 1 . . . . . 15 11 13 2 13 . . . . . Heat Flow Errors 26 | . 2 . . . . . . 5 3 10 . 6 . . . . . Energy Discharges 30 | . 2 . . . . . . 12 4 7 . 5 . . . . . Parts Rejected 3 | . . 1 . . . . . . 1 . . 1 . . . . . Data Loss (minor) 19 | . . . . . . . . 4 6 4 . 5 . . . . . Data Loss (major) 13 | . . 1 . . . . . 4 1 5 . 2 . . . . . Misfires 2 | . . . . . . . . 1 1 . . . . . . . . Alerts 6 | . 1 . . . . . . 1 1 2 . 1 . . . . . Overload Shots . | . . . . . . . . . . . . . . . . . . Overflow Damage 5862 | . 498 363 578 . . 157 1605 1061 . 286 . 150 1067 . . . 97 Projectiles 107 | . . . 1 . . 29 11 36 . . . . . . . . 30 Explosions 67 | . . . . . . . . . . . . . . . . . 67 Melee 5688 | . 498 363 577 . . 128 1594 1025 . 286 . 150 1067 . . . . Knockbacks 47 | . 6 3 6 . . . 9 16 . . . . 4 . . . 3 Impact 43 | . 6 3 5 . . . 9 15 . . . . 4 . . . 1 Kinetic 1 | . . . . . . . . . . . . . . . . . 1 Secondary 3 | . . . 1 . . . . 1 . . . . . . . . 1 Self-Inflicted Damage 96 | . . . . . . . . . . 96 . . . . . . . Shots 3 | . . . . . . . . . . 3 . . . . . . . Rammed . | . . . . . . . . . . . . . . . . . . Targets Rammed . | . . . . . . . . . . . . . . . . . . Kicked . | . . . . . . . . . . . . . . . . . . Crushed . | . . . . . . . . . . . . . . . . . . Highest Temperature 327 | . 206 15 136 . . 240 51 278 284 276 . 253 28 . 41 . 327 Average Temperature 86 | . 57 15 49 . . 87 18 89 80 105 . 73 13 . 24 . 148 Received Heat Transfer 2944 | . 153 54 255 . . 504 555 291 6 135 . 108 345 . 69 . 469 Effects 3 | . . . . . . 1 . 1 . 1 . . . . . . . Energy Bleed 3 | . . . . . . 1 . 1 . 1 . . . . . . . Siege Activations . | . . . . . . . . . . . . . . . . . . Robots Corrupted . | . . . . . . . . . . . . . . . . . . Combat Hostiles . | . . . . . . . . . . . . . . . . . . Parts Fried 89 | . 7 7 15 . . 2 24 13 . 2 . 3 16 . . . . Impact Corruptions 198 | . 22 13 23 . . 8 51 42 . 12 . 4 23 . . . . Robots Melted 1 | . . . . . . 1 . . . . . . . . . . . Combat Hostiles 1 | . . . . . . 1 . . . . . . . . . . . Parts Melted 7 | . . . 2 . . 4 . 1 . . . . . . . . . Heat Transferred 2371 | . 225 . 444 . . 1554 37 . . . . . . . . . 111 Parts Sabotaged . | . . . . . . . . . . . . . . . . . . Parts Stolen . | . . . . . . . . . . . . . . . . . . Parts Stripped . | . . . . . . . . . . . . . . . . . . Power Chain Reactions . | . . . . . . . . . . . . . . . . . . Missiles Intercepted . | . . . . . . . . . . . . . . . . . . Alert | -11 -10 -10 -9 -9 -9 -8 -8 -7 -7 -7 -7 -6 -6 -6 -6 -6 -6 ------- Run | Scr Mat Min Mat Min Exi Min Mat Fac Low Low Dat Pro Fac Low Low Zio Dee Peak Influence 509 | . 216 356 498 90 . 400 509 444 . . . . 257 . . . . Initial 170 | . . 66 138 82 . . 156 170 . . . . 48 . . . . Average 237 | . 110 224 332 56 . 269 342 218 . . . . 155 . . . . Maximum Alert Level 2 | . 1 1 2 . . 2 2 2 . . . . 1 . . . . Low Security (%) 37 | 100 89 51 11 100 . 27 2 42 . . . . 58 . . . . Level 1 51 | . 10 48 61 . . 57 84 44 . . . . 41 . . . . Level 2 10 | . . . 27 . . 15 12 13 . . . . . . . . . Level 3 . | . . . . . . . . . . . . . . . . . . Level 4 . | . . . . . . . . . . . . . . . . . . Level 5 . | . . . . . . . . . . . . . . . . . . High Security . | . . . . . . . . . . . . . . . . . . Max Security . | . . . . . . . . . . . . . . . . . . Squads Dispatched 27 | . 3 . 4 . . . 3 6 . . . . 11 . . . . Investigation 8 | . 2 . 2 . . . 2 1 . . . . 1 . . . . Extermination 6 | . . . . . . . . 4 . . . . 2 . . . . Reinforcement 10 | . 1 . 2 . . . 1 1 . . . . 5 . . . . Assault . | . . . . . . . . . . . . . . . . . . Garrison 3 | . . . . . . . . . . . . . 3 . . . . Intercept . | . . . . . . . . . . . . . . . . . . Searches Triggered . | . . . . . . . . . . . . . . . . . . Construction Impeded . | . . . . . . . . . . . . . . . . . . Haulers Reinforced 1 | . . . . . . . . . . . . . 1 . . . . Active Scanning Responses . | . . . . . . . . . . . . . . . . . . Cargo Convoy Interrupts . | . . . . . . . . . . . . . . . . . . Stealth | -11 -10 -10 -9 -9 -9 -8 -8 -7 -7 -7 -7 -6 -6 -6 -6 -6 -6 --------- Run | Scr Mat Min Mat Min Exi Min Mat Fac Low Low Dat Pro Fac Low Low Zio Dee Distress Signals 11 | . . . 3 . . . 5 . . . . . 3 . . . . Communications Jammed . | . . . . . . . . . . . . . . . . . . Distress Signals . | . . . . . . . . . . . . . . . . . . Times Spotted 278 | . 23 11 31 . . 33 56 19 1 12 . 11 21 1 10 . 49 Peak Tracking Total 38 | . 3 6 7 . . 4 6 3 1 4 . 4 4 1 4 . 38 Tactical Retreats 25 | . 4 2 1 . . 4 8 2 . 2 . . . . 2 . . Traps | -11 -10 -10 -9 -9 -9 -8 -8 -7 -7 -7 -7 -6 -6 -6 -6 -6 -6 ------- Run | Scr Mat Min Mat Min Exi Min Mat Fac Low Low Dat Pro Fac Low Low Zio Dee Traps Triggered 7 | . 3 . 2 . . . 1 1 . . . . . . . . . Indirectly . | . . . . . . . . . . . . . . . . . . Trap Hack Attempts . | . . . . . . . . . . . . . . . . . . Triggered . | . . . . . . . . . . . . . . . . . . Disarmed . | . . . . . . . . . . . . . . . . . . Reprogrammed . | . . . . . . . . . . . . . . . . . . Reused . | . . . . . . . . . . . . . . . . . . Traps Extracted . | . . . . . . . . . . . . . . . . . . Installed 10 | . . . . . . . . . . 2 . . . . 8 . . Triggered 6 | . . . . . . . . . . 6 . . . . . . . Machines | -11 -10 -10 -9 -9 -9 -8 -8 -7 -7 -7 -7 -6 -6 -6 -6 -6 -6 ---------- Run | Scr Mat Min Mat Min Exi Min Mat Fac Low Low Dat Pro Fac Low Low Zio Dee Machines Disabled 7 | . . 1 . . . . 1 1 . 1 . . . . . . 3 Max in Single Turn 1 | . . 1 . . . . 1 . . 1 . . . . . . . Garrison Access 3 | . . . . . . . 1 1 . . . . 1 . . . . Machines Sabotaged . | . . . . . . . . . . . . . . . . . . Garrisons Compromised . | . . . . . . . . . . . . . . . . . . Overloaded Fab Kills . | . . . . . . . . . . . . . . . . . . Hacking | -11 -10 -10 -9 -9 -9 -8 -8 -7 -7 -7 -7 -6 -6 -6 -6 -6 -6 --------- Run | Scr Mat Min Mat Min Exi Min Mat Fac Low Low Dat Pro Fac Low Low Zio Dee Machines Accessed 65 | . 9 . 10 . 1 . 15 14 1 1 4 . 7 1 2 . . Terminals 34 | . 7 . 8 . . . 9 6 . . . . 4 . . . . Fabricators 5 | . . . . . . . . 4 . . . . 1 . . . . Repair Stations 7 | . . . 1 . . . 2 3 . . . . 1 . . . . Recycling Units 4 | . 2 . 1 . . . 1 . . . . . . . . . . Scanalyzers 2 | . . . . . . . 2 . . . . . . . . . . Garrison Access 3 | . . . . . . . 1 1 . . . . 1 . . . . Total Hacks 235 | . 24 . 43 . 1 . 63 43 1 1 28 . 23 1 7 . . Successful 159 | . 14 . 21 . 1 . 44 23 1 1 28 . 18 1 7 . . Failed 76 | . 10 . 22 . . . 19 20 . . . . 5 . . . . Catastrophic 9 | . 2 . 1 . . . 3 2 . . . . 1 . . . . Database Lockouts . | . . . . . . . . . . . . . . . . . . Manual 87 | . 17 . 19 . . . 20 24 . . . . 6 . . 1 . Terminals 126 | . 22 . 37 . . . 36 19 . . . . 12 . . . . Fabricators 19 | . . . . . . . . 13 . . . . 6 . . . . Repair Stations 27 | . . . 5 . . . 10 8 . . . . 4 . . . . Recycling Units 6 | . 2 . 1 . . . 3 . . . . . . . . . . Scanalyzers 13 | . . . . . . . 13 . . . . . . . . . . Garrison Access 5 | . . . . . . . 1 3 . . . . 1 . . . . Terminal Hacks 84 | . 9 . 13 . 1 . 13 5 1 1 28 . 5 1 7 . . Record 18 | . . . . . 1 . . . . . 11 . . . 6 . . Part Schematic 12 | . 2 . . . . . . 1 . . 9 . . . . . . Robot Schematic 5 | . . . . . . . . . . . 5 . . . . . . Robot Analysis 3 | . 2 . 1 . . . . . . . . . . . . . . Prototype ID Bank 10 | . 1 . 2 . . . 3 1 . . 3 . . . . . . Open Door 4 | . . . . . . . . . 1 1 . . . 1 1 . . Branch Access Points 2 | . . . 1 . . . . . . . . . 1 . . . . Terminal Index 2 | . . . 1 . . . 1 . . . . . . . . . . Recycling Unit Index 1 | . . . 1 . . . . . . . . . . . . . . Scanalyzer Index 2 | . . . . . . . 1 1 . . . . . . . . . Alert Level 2 | . . . 1 . . . . 1 . . . . . . . . . Unreport Threat 4 | . . . 2 . . . 2 . . . . . . . . . . Locate Traps 8 | . 1 . 1 . . . 3 1 . . . . 2 . . . . Recall Investigation 1 | . . . 1 . . . . . . . . . . . . . . Hauler Manifests 2 | . 1 . 1 . . . . . . . . . . . . . . Zone Layout 8 | . 2 . 1 . . . 3 . . . . . 2 . . . . Fabricator Hacks 7 | . . . . . . . . 1 . . . . 6 . . . . Network Status 1 | . . . . . . . . 1 . . . . . . . . . Load Schematic 3 | . . . . . . . . . . . . . 3 . . . . Build 3 | . . . . . . . . . . . . . 3 . . . . Repair Station Hacks 19 | . . . 4 . . . 8 5 . . . . 2 . . . . Scan Component 10 | . . . 2 . . . 4 3 . . . . 1 . . . . Repair 9 | . . . 2 . . . 4 2 . . . . 1 . . . . Recycling Unit Hacks . | . . . . . . . . . . . . . . . . . . Scanalyzer 10 | . . . . . . . 10 . . . . . . . . . . Insert Component 3 | . . . . . . . 3 . . . . . . . . . . Analyze 7 | . . . . . . . 7 . . . . . . . . . . Garrison Access Hacks 2 | . . . . . . . 1 . . . . . 1 . . . . Seal Access 2 | . . . . . . . 1 . . . . . 1 . . . . Unauthorized Hacks 37 | . 5 . 4 . . . 12 12 . . . . 4 . . . . Terminals 23 | . 3 . 3 . . . 9 4 . . . . 4 . . . . Track 5 | . . . . . . . 3 . . . . . 2 . . . . Assimilate 3 | . . . . . . . 3 . . . . . . . . . . Botnet 12 | . 3 . 2 . . . 2 3 . . . . 2 . . . . Operators 3 | . . . 1 . . . 1 1 . . . . . . . . . Fabricators 7 | . . . . . . . . 7 . . . . . . . . . Report 1 | . . . . . . . . 1 . . . . . . . . . Liberate 4 | . . . . . . . . 4 . . . . . . . . . Fabnet 2 | . . . . . . . . 2 . . . . . . . . . Repair Stations . | . . . . . . . . . . . . . . . . . . Recycling Units 6 | . 2 . 1 . . . 3 . . . . . . . . . . Reject 1 | . . . . . . . 1 . . . . . . . . . . Recyclers 1 | . . . . . . . 1 . . . . . . . . . . Mask 1 | . . . . . . . 1 . . . . . . . . . . Tunnel 3 | . 2 . 1 . . . . . . . . . . . . . . Scanalyzers . | . . . . . . . . . . . . . . . . . . Garrison Access 1 | . . . . . . . . 1 . . . . . . . . . Jam 1 | . . . . . . . . 1 . . . . . . . . . Data Cores Recovered . | . . . . . . . . . . . . . . . . . . Used . | . . . . . . . . . . . . . . . . . . Hacking Detections 45 | . 7 . 8 . . . 13 12 . . . . 5 . . . . Full Trace Events 3 | . . . 1 . . . 1 . . . . . 1 . . . . Feedback Events . | . . . . . . . . . . . . . . . . . . Feedback Blocked . | . . . . . . . . . . . . . . . . . . Robot Schematics Acquired 7 | . . . . . . . . . . . 5 . . . . 2 . Robots Built 2 | . . . . . . . . . . . . . 2 . . . . Authchips 1 | . . . . . . . . . . . . . 1 . . . . Time 44 | . . . . . . . . . . . . . 44 . . . . Total Robot Build Rating 8 | . . . . . . . . . . . . . 8 . . . . Part Schematics Acquired 28 | . 2 . . . . . 1 1 . . 9 . . . . 15 . Parts Built 2 | . . . . . . . . . . . . . 2 . . . . Authchips 2 | . . . . . . . . . . . . . 2 . . . . Time 124 | . . . . . . . . . . . . . 124 . . . . Total Part Build Rating 14 | . . . . . . . . . . . . . 14 . . . . Parts Repaired 9 | . . . 2 . . . 4 2 . . . . 1 . . . . Time 347 | . . . 64 . . . 171 90 . . . . 22 . . . . Parts Recycled . | . . . . . . . . . . . . . . . . . . Recycled Matter . | . . . . . . . . . . . . . . . . . . Retrieved Matter . | . . . . . . . . . . . . . . . . . . Retrieved Components . | . . . . . . . . . . . . . . . . . . Parts Scanalyzed 1 | . . . . . . . 1 . . . . . . . . . . Part Schematics Acquired 1 | . . . . . . . 1 . . . . . . . . . . Parts Damaged 1 | . . . . . . . 1 . . . . . . . . . . Bothacking | -11 -10 -10 -9 -9 -9 -8 -8 -7 -7 -7 -7 -6 -6 -6 -6 -6 -6 ------------ Run | Scr Mat Min Mat Min Exi Min Mat Fac Low Low Dat Pro Fac Low Low Zio Dee Used RIF Installer . | . . . . . . . . . . . . . . . . . . Robots Hacked 7 | . . . . . . . . . . . 1 1 3 1 1 . . Non-combat . | . . . . . . . . . . . . . . . . . . Combat 7 | . . . . . . . . . . . 1 1 3 1 1 . . Robot Hacks Applied 2 | . . . . . . . . . . . 1 1 . . . . . parse_system 2 | . . . . . . . . . . . 1 1 . . . . . Relay Couplers Released . | . . . . . . . . . . . . . . . . . . Fabnet Peak Effective % 6 | . . . . . . . . . . . . 6 6 6 6 6 6 Autooverrided 5 | . . . . . . . . . . . . . 3 1 1 . . Robots Rewired 4 | . . . . . . . . . . . . . . . 4 . . Allies Hacked 1 | . . . . . . . . 1 . . . . . . . . . Hacks Repelled . | . . . . . . . . . . . . . . . . . . Allies | -11 -10 -10 -9 -9 -9 -8 -8 -7 -7 -7 -7 -6 -6 -6 -6 -6 -6 -------- Run | Scr Mat Min Mat Min Exi Min Mat Fac Low Low Dat Pro Fac Low Low Zio Dee Total Allies 28 | . . . . 3 . . 2 7 . . . 1 5 1 7 2 . Largest Group 6 | . . . . 3 3 3 2 3 . . . 1 3 1 5 6 6 Highest-Rated Group 316 | . . . . 40 40 40 36 64 . . . 96 125 12 155 316 316 Highest-Rated Ally 96 | . . . . 16 16 16 26 32 . . . 96 96 12 31 96 96 Total Orders 22 | . . . . . . . 4 . . . . . 10 . . . 8 STAY 4 | . . . . . . . 2 . . . . . 2 . . . . ROAM 1 | . . . . . . . 1 . . . . . . . . . . FOLLOW 1 | . . . . . . . 1 . . . . . . . . . . EXPLORE 8 | . . . . . . . . . . . . . 7 . . . 1 RETURN 8 | . . . . . . . . . . . . . 1 . . . 7 Ally Attacks 354 | . . . . . . 42 . 30 . . . 29 38 4 15 . 196 Total Damage 6856 | . . . . . . 385 . 663 . . . 871 1028 32 148 . 3729 Kills 54 | . . . . . . 8 . 4 . . . 8 10 1 3 . 20 Allies Corrupted . | . . . . . . . . . . . . . . . . . . Allies Melted . | . . . . . . . . . . . . . . . . . . Intel | -11 -10 -10 -9 -9 -9 -8 -8 -7 -7 -7 -7 -6 -6 -6 -6 -6 -6 ------- Run | Scr Mat Min Mat Min Exi Min Mat Fac Low Low Dat Pro Fac Low Low Zio Dee Robot Analysis Total 3 | . 2 . 1 . . . . . . . . . . . . . . Derelict Logs Recovered 12 | . . . . 1 . . . . 2 2 . 2 . 2 2 1 . Drone Launches 15 | . . . . . . . . . . . . . 6 . . . 9 Drone Recoveries 12 | . . . . . . . . . . . . . 5 . . . 7 Exploration | -11 -10 -10 -9 -9 -9 -8 -8 -7 -7 -7 -7 -6 -6 -6 -6 -6 -6 ------------- Run | Scr Mat Min Mat Min Exi Min Mat Fac Low Low Dat Pro Fac Low Low Zio Dee Turns Passed 24465 | 54 966 222 1197 618 233 692 3104 3735 1484 1915 175 1475 1713 1349 2012 1658 1863 Spaces Moved 13055 | 40 653 103 682 493 191 322 1476 1816 878 989 90 903 786 900 993 897 843 Core 6 | 6 . . . . . . . . . . . . . . . . . Treads 4425 | . 1 18 . . . 180 1476 1473 878 399 . . . . . . . Legs 1780 | . . . . . . . . . . . . . 66 900 760 48 6 Wheels 6844 | 34 652 85 682 493 191 142 . 343 . 590 90 903 720 . 233 849 837 Hover . | . . . . . . . . . . . . . . . . . . Flight . | . . . . . . . . . . . . . . . . . . Fastest Speed 50 | 50 100 115 100 120 120 110 160 160 160 160 185 120 115 120 180 120 115 Average Speed 156 | 92 109 126 116 120 120 141 161 165 160 179 190 149 134 141 187 177 194 Slowest Speed 243 | 100 160 160 145 120 120 170 243 240 160 240 200 200 190 190 190 195 210 Overloaded Moves . | . . . . . . . . . . . . . . . . . . Propulsion Burnouts . | . . . . . . . . . . . . . . . . . . Robots Hopped . | . . . . . . . . . . . . . . . . . . Cave-ins Triggered . | . . . . . . . . . . . . . . . . . . Exploration Rate (%) 70 | 3 90 20 52 97 54 59 85 52 97 98 75 96 36 91 92 86 86 Regions Visited 17 Branch Regions 12 Pre-discovered Areas 13 | . 2 . 1 2 1 . . . 1 . 1 . . . 4 1 . Known Exits Taken 7 | . . . 1 . . . . 1 1 1 1 1 1 . . . . Unknown Exits Taken 10 | 1 1 1 . 1 1 1 1 . . . . . . 1 1 1 . Scrap Searched 19 | . . . . 2 . . . . 2 5 . 2 . 2 3 3 . Spaces Dug 177 | . 3 . 10 1 . 1 16 59 9 27 . 4 24 10 10 3 . Terrain Destroyed 234 | . 3 . 10 1 . 1 17 59 10 32 . 54 24 10 10 3 . Melee 151 | . 3 . 10 1 . 1 15 58 8 5 . 4 23 10 10 3 . Projectile 5 | . . . . . . . 2 1 1 . . . 1 . . . . AOE 77 | . . . . . . . . . . 27 . 50 . . . . . Terrain Rammed . | . . . . . . . . . . . . . . . . . . Walls Destroyed . | . . . . . . . . . . . . . . . . . . Machines Disabled . | . . . . . . . . . . . . . . . . . . Actions | -11 -10 -10 -9 -9 -9 -8 -8 -7 -7 -7 -7 -6 -6 -6 -6 -6 -6 --------- Run | Scr Mat Min Mat Min Exi Min Mat Fac Low Low Dat Pro Fac Low Low Zio Dee Total 15686 | 53 800 146 928 515 195 430 1946 2280 919 1076 93 972 1276 960 1102 954 1041 Wait 1204 | 4 62 5 93 8 3 16 247 240 5 28 . 14 291 26 23 28 111 Move 13038 | 39 652 102 681 492 190 321 1475 1815 877 988 89 902 785 899 992 896 843 Hop . | . . . . . . . . . . . . . . . . . . Pick Up 131 | 4 9 2 14 6 . 3 26 15 2 6 . 2 18 8 4 3 9 Fast Attach 74 | 6 4 2 10 . . 2 6 4 2 4 . 1 16 . 1 3 13 Attach 74 | . 2 2 6 . . 7 10 7 1 2 . 2 19 3 2 2 9 Detach 22 | . 1 . . . . 1 4 3 2 . . . 6 1 1 1 2 Swap 266 | . 8 2 28 4 1 21 25 61 11 7 3 20 39 7 10 5 14 Drop 124 | . 3 1 6 3 1 . 28 13 2 8 . . 20 4 4 6 25 Fire 113 | . 11 . 8 . . 40 7 1 9 3 . 15 3 . 8 . 8 Melee 595 | . 48 30 82 2 . 19 118 121 8 28 1 16 79 12 14 10 7 Ram . | . . . . . . . . . . . . . . . . . . Kick . | . . . . . . . . . . . . . . . . . . Crush . | . . . . . . . . . . . . . . . . . . Escape Stasis . | . . . . . . . . . . . . . . . . . . Rewire 35 | . . . . . . . . . . . . . . . 35 . . Trap 10 | . . . . . . . . . . 2 . . . . 8 . . Miscellaneous . | . . . . . . . . . . . . . . . . . . Route ------- -11/Scrapyard -10/Materials (discovered 5 exits: *Mat x3 / [*Min x2]) -10/Mines -9/Materials -9/Mines (discovered 3 exits: *Mat x2 / *Exi) -9/Exiles -8/Mines (discovered 2 exits: *Mat x2) -8/Materials (discovered 3 exits: *Fac x2 / [*Sto]) -7/Factory (discovered 2 exits: *Fac / *Low) -7/Lower Caves -7/Lower Caves (discovered 2 exits: *Fac / *Dat) -7/Data Miner -6/Proximity Caves -6/Factory (discovered 2 exits: *Low x2) -6/Lower Caves -6/Lower Caves (discovered 2 exits: [*Fac] / *Zio) -6/Zion (discovered 2 exits: [*Dee] / [*Pro]) -6/Deep Caves (discovered 1 exit: [*Pro]) History --------- Turn | Location | Event 29 | -11/Scrapyard | Discovered new exit (range 15) 55 | -11/Scrapyard | Entered Materials 151 | -10/Materials | Discovered new exit (range 7) 301 | -10/Materials | Build established: Mutant 413 | -10/Materials | Discovered new exit (range 7) 468 | -10/Materials | Discovered new exit (range 13) 636 | -10/Materials | Discovered new exit (range 16) 871 | -10/Materials | Discovered new exit (range 20) 1021 | -10/Materials | Entered Mines 1057 | -10/Mines | Assembled infested the area 1106 | -10/Mines | Core integrity fell below 50% 1170 | -10/Mines | Core integrity fell below 20% 1229 | -10/Mines | Discovered new exit (range 8) 1243 | -10/Mines | Entered Materials 1243 | -9/Materials | Evolved 2 slots: Propulsion x1, Utility x1 1375 | -9/Materials | Identified exit to Mines 2214 | -9/Materials | Repaired Flail 2247 | -9/Materials | Repaired Hrd. Light Armor Plating 2440 | -9/Materials | Entered Mines 2518 | -9/Mines | Discovered new exit (range 15) 2612 | -9/Mines | Assisted by bots powering up and referring to "LRC-V3" 2614 | -9/Mines | Learned location of Zion (-6) 2659 | -9/Mines | Found a damaged Exp. Sensor Array with a note attached 2662 | -9/Mines | Found Prototype Device 2705 | -9/Mines | Discovered new exit (range 8) 2770 | -9/Mines | Learned location of Storage (-8) 3052 | -9/Mines | Deemed a non-threat by the Exiles lab entrance 3052 | -9/Mines | Discovered new exit (range 5) 3058 | -9/Mines | Entered Exiles 3058 | -9/Exiles | Accompanied by 3 allies 3087 | -9/Exiles | Met 8R-AWN 3108 | -9/Exiles | Met EX-HEX 3174 | -9/Exiles | Met EX-DEC 3277 | -9/Exiles | Discovered new exit (range 11) 3291 | -9/Exiles | Entered Mines 3291 | -8/Mines | Accompanied by 3 allies 3509 | -8/Mines | Core integrity fell below 50% 3623 | -8/Mines | Lost 4 parts (1p1n1u1w) 3694 | -8/Mines | Discovered new exit (range 6) 3897 | -8/Mines | Discovered new exit (range 16) 3983 | -8/Mines | Entered Materials 3983 | -8/Materials | Evolved 2 slots: Utility x2 4406 | -8/Materials | Discovered new exit (range 4) 4741 | -8/Materials | Repaired Flail 4793 | -8/Materials | Repaired Hvy. Ion Engine 5258 | -8/Materials | Discovered new exit (range 13) 5704 | -8/Materials | Discovered new exit (range 3) 5735 | -8/Materials | Repaired Med. Treads? 5823 | -8/Materials | Repaired Hrd. Heavy Armor Plating 6292 | -8/Materials | Identified Exp. Sensor Array 7087 | -8/Materials | Entered Factory 7087 | -7/Factory | Accompanied by 1 ally 7087 | -7/Factory | Evolved 2 slots: Utility x2 7320 | -7/Factory | Repaired Broken Exp. Sensor Array? 7650 | -7/Factory | Build established: Assassin 8706 | -7/Factory | Discovered new exit (range 14) 8735 | -7/Factory | Identified exit to Factory 10277 | -7/Factory | Repaired Imp. Deuterium Engine 10462 | -7/Factory | Build established: Hacker-Mutant 10652 | -7/Factory | Discovered new exit (range 8) 10673 | -7/Factory | Identified exit to Lower Caves 10822 | -7/Factory | Entered Lower Caves 11127 | -7/Lower Caves | Build established: Assassin 11439 | -7/Lower Caves | Learned location of Extension (-5) 11831 | -7/Lower Caves | Attracted the attention of an 0b10 checkpoint 11907 | -7/Lower Caves | Learned Factory garrison access intel 12144 | -7/Lower Caves | Discovered new exit (range 12) 12303 | -7/Lower Caves | Identified exit to Lower Caves 12306 | -7/Lower Caves | Entered another Lower Caves area 12370 | -7/Lower Caves | Discovered exit to Factory (range 6) 12539 | -7/Lower Caves | Learned Factory security intel 13169 | -7/Lower Caves | Identified exit to Data Miner 13294 | -7/Lower Caves | Build established: Mutant 13925 | -7/Lower Caves | Encountered a Warlord checkpoint 13993 | -7/Lower Caves | Build established: Assassin 14221 | -7/Lower Caves | Entered Data Miner 14223 | -7/Data Miner | Discovered new exit (range 6) 14238 | -7/Data Miner | Identified exit to Proximity Caves 14262 | -7/Data Miner | Met Data Miner 14316 | -7/Data Miner | Learned location of Section 7 (-2) 14316 | -7/Data Miner | Acquired the access code to Warlord's prototype stash 14352 | -7/Data Miner | Received God Mode back door access code from Data Miner 14396 | -7/Data Miner | Entered Proximity Caves 14886 | -6/Proximity Caves | Escorted by Enhanced Grunt 15364 | -6/Proximity Caves | Learned Factory emergency access door positions 15857 | -6/Proximity Caves | Build established: Mutant 15871 | -6/Proximity Caves | Entered Factory 15871 | -6/Factory | Accompanied by 1 ally 15871 | -6/Factory | Evolved 2 slots: Utility x2 15874 | -6/Factory | Loaded intel: 4 garrison access locations 15921 | -6/Factory | Repaired Hrd. Heavy Armor Plating 16160 | -6/Factory | Found Scatter Rocket Array 16282 | -6/Factory | Fabricated Exp. Sensor Array (x1) 16392 | -6/Factory | Fabricated Combat Drone Bay (x1) 16442 | -6/Factory | Fabricated Y-54 Guardian (x2) 16657 | -6/Factory | Identified exit to Lower Caves 16798 | -6/Factory | Build established: Hacker-Mutant 17070 | -6/Factory | Garrison activated, responded to threat 17507 | -6/Factory | Lost 4 parts (1n2u1w) 17584 | -6/Factory | Entered Lower Caves 17875 | -6/Lower Caves | Build established: Hacker-Assassin 17958 | -6/Lower Caves | Learned 12 Factory zone layouts 18320 | -6/Lower Caves | Build established: Scavenger-Assassin 18407 | -6/Lower Caves | Encountered a Warlord checkpoint 18459 | -6/Lower Caves | Discovered new exit (range 13) 18463 | -6/Lower Caves | Learned Factory terminal intel 18933 | -6/Lower Caves | Entered another Lower Caves area 18988 | -6/Lower Caves | Discovered new exit (range 20) 19163 | -6/Lower Caves | Learned location of 1 exit from Factory 19163 | -6/Lower Caves | Learned Research emergency access door positions 19243 | -6/Lower Caves | A Commander dispatched an escort 19465 | -6/Lower Caves | Build established: Assassin 20362 | -6/Lower Caves | Discovered new exit (range 16) 20861 | -6/Lower Caves | Attacked by a delusional Derelict stockpiling Unaware 20945 | -6/Lower Caves | Entered Zion 20945 | -6/Zion | Accompanied by 5 allies 20946 | -6/Zion | Commander's escort returned to base 21047 | -6/Zion | Discovered new exit (range 18) 21129 | -6/Zion | Build established: Scavenger-Assassin 21153 | -6/Zion | Received a visual enhancement algorithm 21184 | -6/Zion | Given A8's code to call for help 21657 | -6/Zion | Learned Factory security intel 21726 | -6/Zion | Discovered new exit (range 16) 21798 | -6/Zion | Given the Hacking Drone Bay 22095 | -6/Zion | Learned Factory emergency access door positions 22533 | -6/Zion | Enhanced Grunt warped into view, answering call for help 22539 | -6/Zion | Enhanced Grunt warped into view, answering call for help 22588 | -6/Zion | Saw the warning signs outside the Deep Caves entrance 22603 | -6/Zion | Entered Deep Caves 22603 | -6/Deep Caves | Accompanied by 6 allies 22800 | -6/Deep Caves | Build established: Commander-Mutant 22896 | -6/Deep Caves | Z-Facility disabled 23012 | -6/Deep Caves | Attacked by Z-Imprinter 23020 | -6/Deep Caves | Allies destroyed Z-Imprinter 23048 | -6/Deep Caves | Found Prototype Protection 23048 | -6/Deep Caves | Identified Zio. Weapon Casing 23346 | -6/Deep Caves | Found Prototype Protection 23795 | -6/Deep Caves | Discovered new exit (range 13) 24384 | -6/Deep Caves | Spotted as-91232 24386 | -6/Deep Caves | Exposed GOLEM chamber 24400 | -6/Deep Caves | Triggered Deep Caves wall 24401 | -6/Deep Caves | Spotted AS-78413 24402 | -6/Deep Caves | Destroyed AS-78413 24423 | -6/Deep Caves | Core integrity fell below 50% 24427 | -6/Deep Caves | Identified Zio. Heavy Carapace 24430 | -6/Deep Caves | Destroyed 35 combat bots 24433 | -6/Deep Caves | Spotted AS-00225 24461 | -6/Deep Caves | Core integrity fell below 20% 24466 | -6/Deep Caves | Destroyed by as-10494 with Assembled Gauss Rifle Last Messages --------------- 24439_ Zio. Heavy Carapace destroyed. 24444_ as-10494 released from Mobile Assembly Unit. 24444_ Penetrated by Slug. 24446_ Combat Drone Bay destroyed. 24450_ Penetrated by Slug. 24452_ Lyr. Heavy Armor Plating destroyed. 24454_ as-98677 released from Mobile Assembly Unit. 24454_ Imp. Medium Treads destroyed. 24455_ Penetrated by Slug. 24457_ Zio. Light DM Reactor destroyed. 24457_ Mak. Hammer follow-up attack on as-91232. 24457_ as-91232 knocked back. 24459_ Penetrated by Slug. 24460_ Mak. Hammer destroyed. 24460_ Chainsword destroyed. 24461_ Penetrated by Slug. 24464_ as-41371 released from Mobile Assembly Unit. 24464_ Penetrated by Slug. 24464_ Zio. Composite Leg I destroyed. 24465_ Penetrated by Slug. Map ----- +----------------------------------------------------+ | ???????????????? ? ?## ########## | | ????????????? # ########## | | ????????????? ? ? ? ? ###### | | ???????????? ? ?? ####### | | ???????????? ??? ? ####### | | ??????????? ? ??####### | | ??????????? ? ? ###?## | | ??????????? ? ? ######### | | ??????????? ### ##### | | ??????????? ? ### ##### | | ????????? # ## | | ????????? ! #### | | ???????? ! ### | | ???????? g* ?# | | ?????? A #### | | ????? ! ####### | | ????? ####### | | ?????? h ####### | | ??????? !! ! ####### | | ????????# a * ! ####### | | ?????????"Ga * ####### | | ?????????" ! "###### | | ????????"" a "### # | | ????????"Gaa =g !h ### | | ????????"G =a = ! " | | ????????# @ = !!!* # | | ????????" !!! " | | ????????" / =!%=! ## | | ????????" *!!== | | ????????""" !%!%[ | | ????????"%% b=* =% | | ????????"" % "##### | | ????????" ###### | | ????????"" "###### | | ????????" # # ##?#### | | ????????" #### ## ## ######## | | ????????""" ###### ## ######?#### | | ?????????" ????#### ###?####### | | ?????????######???#?##?#?########## | | | | | | | | | | | | | | | | | | | | | | | +----------------------------------------------------+ Best States ------------- Heat Dissipation 63 Energy Generation 27 Energy Capacity 290 Matter Stores 300 Matter Capacity 450 Sight Range 20 Robot Scan Range 20 Terrain Scan Range 20 Terrain Scan Density 210 Armor Coverage 1800 Resistance: KI 30 Power Shielding 33 Utility Shielding 66 Weapon Shielding 100 Evasion (%) 60 Melee Accuracy 12 Recoil Reduction 3 Offensive Hacking 31 Defensive Hacking 10 Authchip Count 4 Item Schematics ----------------- Hcp. Storage Unit | -10/Materials | Hacked Huge Storage Unit | -10/Materials | Hacked Exp. Sensor Array | -8/Materials | Scanalyzed Imp. Melee Analysis Suite | -7/Factory | Hacked Combat Drone Bay | -7/Data Miner | Free Lgt. Regenerative Plating | -7/Data Miner | Free Cld. Cesium-ion Thruster | -7/Data Miner | Free Exp. Targeting Computer | -7/Data Miner | Free Imp. Lightning Gun | -7/Data Miner | Free Field Propulsion Drive | -7/Data Miner | Free Imp. Weapon Cycler | -7/Data Miner | Free KE Penetrator | -7/Data Miner | Free Imp. Transmission Jammer | -7/Data Miner | Free Adv. Reaction Control System | -6/Zion | Archive Remote Shield | -6/Zion | Archive Imp. Component Analysis Suite | -6/Zion | Archive Nuclear Pulse Thruster | -6/Zion | Archive Lrn. Proton Cannon | -6/Zion | Archive Hpw. Shock Rifle | -6/Zion | Archive Imp. Arc Projector | -6/Zion | Archive Proton Cannon | -6/Zion | Archive Adv. Trap Extractor | -6/Zion | Archive Hvy. Gauss Cannon | -6/Zion | Archive Variable Charge Gun | -6/Zion | Archive Lgt. Fission Core | -6/Zion | Archive Plasma Flamer | -6/Zion | Archive Hyp. Gauss Cannon | -6/Zion | Archive Imp. KE Penetrator | -6/Zion | Archive Robot Schematics ------------------ W-25 Informer | -7/Data Miner | Free M-14 Sweeper | -7/Data Miner | Free Y-54 Guardian | -7/Data Miner | Free B-60 Warrior | -7/Data Miner | Free R-10 Processor | -7/Data Miner | Free M-22 Extractor | -6/Zion | Archive T-07 Excavator | -6/Zion | Archive Fabricated ------------ Exp. Sensor Array | x1 | -6/Factory | Authchip Combat Drone Bay | x1 | -6/Factory | Authchip Y-54 Guardian | x2 | -6/Factory | Authchip Alien Tech Used ----------------- None Achievements -------------- None Challenges ------------ None Game ------ Seed CompactTargetingSink Manual? 0 Play Time 03:20:15 Cumulative 290.1 hours Start 2022.06.05 @ 14:32:07 End 2022.06.05 @ 19:45:07 Sessions 5 Manual Loads 0 Difficulty Rogue Special Mode None Game No. 83 Rogue 83 Adventurer 0 Explorer 0 Win Type - Total 14 Types 12/0/2/0/0/0/0/0/0 Lore% 87 Gallery% 88 Achievement% 73 Wizard Run 0 Options --------- ASCII 0 Keyboard 0 Movement Numpad Keybinds 0 Fullscreen 1 Font 14/SmallcapsGlow Map View 84x54 Tactical HUD 1 Map Filters NONE Filters NONE Steam 1 RUN: aab43efc-6fec-48e6-aede-4ca247c5ad1a